[Event "*** MasterClass Titled Tuesday Blitz"]
[Site "Chess.com"]
[Date "2017.10.03"]
[Round "6"]
[White "MITerryble"]
[Black "bancsoo"]
[Result "1/2-1/2"]
[WhiteElo "2628"]
[BlackElo "2565"]
[TimeControl "180+2"]
[EndTime "14:25:31 PDT"]
[Termination "Game drawn by repetition"]

1. d4 {[%clk 0:03:01.9]} 1... d5 {[%clk 0:03:00.8]} 2. Nf3 {[%clk 0:03:03]} 2...
Nf6 {[%clk 0:03:01.5]} 3. c4 {[%clk 0:03:04.1]} 3... c6 {[%clk 0:03:02]} 4. e3
{[%clk 0:03:05.1]} 4... Bf5 {[%clk 0:03:02.3]} 5. Nc3 {[%clk 0:03:05.4]} 5... e6
{[%clk 0:03:03.5]} 6. Nh4 {[%clk 0:03:05.9]} 6... Bg6 {[%clk 0:03:04.2]} 7. Qb3
{[%clk 0:02:58.8]} 7... Qc7 {[%clk 0:03:04.7]} 8. Bd2 {[%clk 0:02:58.2]} 8...
Nbd7 {[%clk 0:03:03]} 9. Nxg6 {[%clk 0:02:58.4]} 9... hxg6 {[%clk 0:03:03.7]}
10. g3 {[%clk 0:03:00.3]} 10... Be7 {[%clk 0:03:01]} 11. Rc1 {[%clk 0:03:00.1]}
11... Nb6 {[%clk 0:03:01.2]} 12. cxd5 {[%clk 0:02:55.4]} 12... exd5 {[%clk
0:03:01.7]} 13. Be2 {[%clk 0:02:52.1]} 13... Qd7 {[%clk 0:02:59.8]} 14. f3
{[%clk 0:02:46.3]} 14... g5 {[%clk 0:02:57.4]} 15. g4 {[%clk 0:02:45.6]} 15...
Qc7 {[%clk 0:02:46.8]} 16. f4 {[%clk 0:02:33.2]} 16... gxf4 {[%clk 0:02:46.8]}
17. exf4 {[%clk 0:02:35]} 17... Qd7 {[%clk 0:02:17.2]} 18. h3 {[%clk 0:02:31.4]}
18... Bd6 {[%clk 0:02:12.6]} 19. Kf2 {[%clk 0:02:29.7]} 19... Kf8 {[%clk
0:02:01.8]} 20. g5 {[%clk 0:02:21.8]} 20... Ne4+ {[%clk 0:01:57.5]} 21. Nxe4
{[%clk 0:02:22.2]} 21... dxe4 {[%clk 0:01:59.1]} 22. Bg4 {[%clk 0:01:55.5]}
22... Qc7 {[%clk 0:01:55.8]} 23. f5 {[%clk 0:01:55.6]} 23... Nd5 {[%clk
0:01:51.8]} 24. Kg2 {[%clk 0:01:24.2]} 24... Re8 {[%clk 0:01:33.3]} 25. Rhe1
{[%clk 0:01:04.4]} 25... Bf4 {[%clk 0:01:29.4]} 26. Bb4+ {[%clk 0:00:35.6]}
26... Kg8 {[%clk 0:01:27.2]} 27. Rc2 {[%clk 0:00:28.3]} 27... Qd8 {[%clk
0:01:11.9]} 28. g6 {[%clk 0:00:25.6]} 28... Bb8 {[%clk 0:01:03.7]} 29. Rce2
{[%clk 0:00:23.1]} 29... e3 {[%clk 0:00:29.5]} 30. Rxe3 {[%clk 0:00:21.1]} 30...
Rxe3 {[%clk 0:00:26.8]} 31. Rxe3 {[%clk 0:00:23]} 31... Nxe3+ {[%clk 0:00:26]}
32. Qxe3 {[%clk 0:00:24.8]} 32... Rh6 {[%clk 0:00:20.6]} 33. Kg1 {[%clk
0:00:15.2]} 33... fxg6 {[%clk 0:00:21.4]} 34. Qe6+ {[%clk 0:00:13.9]} 34... Kh8
{[%clk 0:00:22.6]} 35. fxg6 {[%clk 0:00:13.6]} 35... Qg8 {[%clk 0:00:24.2]} 36.
Qf7 {[%clk 0:00:12.3]} 36... Bg3 {[%clk 0:00:13.1]} 37. Be7 {[%clk 0:00:11.8]}
37... Bh4 {[%clk 0:00:13.7]} 38. Bd6 {[%clk 0:00:10.6]} 38... Bf6 {[%clk
0:00:14.4]} 39. Be5 {[%clk 0:00:11.5]} 39... Bxe5 {[%clk 0:00:15]} 40. dxe5
{[%clk 0:00:13.3]} 40... Qd8 {[%clk 0:00:16.3]} 41. e6 {[%clk 0:00:12.2]} 41...
Qd4+ {[%clk 0:00:17.2]} 42. Kg2 {[%clk 0:00:13]} 42... Qe4+ {[%clk 0:00:18.3]}
43. Kg3 {[%clk 0:00:12.9]} 43... Qe3+ {[%clk 0:00:11.8]} 44. Qf3 {[%clk
0:00:12.2]} 44... Qe5+ {[%clk 0:00:11.6]} 45. Qf4 {[%clk 0:00:13.2]} 45... Qe1+
{[%clk 0:00:12]} 46. Qf2 {[%clk 0:00:10.7]} 46... Qe5+ {[%clk 0:00:12.3]} 47.
Qf4 {[%clk 0:00:10.1]} 47... Qe1+ {[%clk 0:00:09.8]} 48. Kg2 {[%clk 0:00:08.6]}
48... Rxg6 {[%clk 0:00:10]} 49. Qf8+ {[%clk 0:00:09.3]} 49... Kh7 {[%clk
0:00:11.4]} 50. e7 {[%clk 0:00:11.1]} 50... Qe4+ {[%clk 0:00:12.6]} 51. Kg3
{[%clk 0:00:11.8]} 51... Qe5+ {[%clk 0:00:13.4]} 52. Kg2 {[%clk 0:00:12.8]}
52... Qe4+ {[%clk 0:00:14.3]} 53. Kg3 {[%clk 0:00:13.1]} 53... Qe1+ {[%clk
0:00:15.3]} 54. Kg2 {[%clk 0:00:13.3]} 54... Qe4+ {[%clk 0:00:13.7]} 55. Kg3
{[%clk 0:00:12.9]} 55... Qe5+ {[%clk 0:00:12.7]} 56. Kg2 {[%clk 0:00:13.5]}
56... Qe4+ {[%clk 0:00:11.1]} 57. Kg3 {[%clk 0:00:14.6]} 57... Qe3+ {[%clk
0:00:11.7]} 58. Kg2 {[%clk 0:00:15.8]} 58... Qe4+ {[%clk 0:00:08.4]} 1/2-1/2

[Event "*** MasterClass Titled Tuesday Blitz"]
[Site "Chess.com"]
[Date "2017.10.03"]
[Round "6"]
[White "r31415"]
[Black "Quiet_Desperation"]
[Result "1-0"]
[WhiteElo "2165"]
[BlackElo "2300"]
[TimeControl "180+2"]
[EndTime "14:25:35 PDT"]
[Termination "r31415 won on time"]

1. e4 {[%clk 0:03:01.9]} 1... Nc6 {[%clk 0:02:59.6]} 2. Nf3 {[%clk 0:03:00]}
2... d6 {[%clk 0:03:00.2]} 3. d4 {[%clk 0:03:00.3]} 3... Nf6 {[%clk 0:03:01.5]}
4. Nc3 {[%clk 0:02:59.8]} 4... d5 {[%clk 0:03:02.9]} 5. exd5 {[%clk 0:02:49.2]}
5... Nxd5 {[%clk 0:03:03]} 6. Nxd5 {[%clk 0:02:51.1]} 6... Qxd5 {[%clk
0:03:03.3]} 7. c4 {[%clk 0:02:52.3]} 7... Qd8 {[%clk 0:02:52]} 8. h3 {[%clk
0:02:48.7]} 8... e6 {[%clk 0:02:44.1]} 9. Be2 {[%clk 0:02:46.8]} 9... Bb4+
{[%clk 0:02:42.3]} 10. Bd2 {[%clk 0:02:47.7]} 10... Be7 {[%clk 0:02:39.4]} 11.
Be3 {[%clk 0:02:45.5]} 11... O-O {[%clk 0:02:40.1]} 12. O-O {[%clk 0:02:45.8]}
12... Bf6 {[%clk 0:02:40.8]} 13. Qd2 {[%clk 0:02:45.3]} 13... b6 {[%clk
0:02:35.5]} 14. Rfd1 {[%clk 0:02:45.8]} 14... Bb7 {[%clk 0:02:35]} 15. Rac1
{[%clk 0:02:40.6]} 15... a5 {[%clk 0:02:30.9]} 16. b3 {[%clk 0:02:39.4]} 16...
Qe7 {[%clk 0:02:22.4]} 17. Bf4 {[%clk 0:02:38.9]} 17... Rfd8 {[%clk 0:02:19.9]}
18. Qe3 {[%clk 0:02:39.4]} 18... Qa3 {[%clk 0:02:12.6]} 19. Bxc7 {[%clk
0:02:23.8]} 19... Nxd4 {[%clk 0:01:46.7]} 20. Bxd8 {[%clk 0:02:14.2]} 20... Rxd8
{[%clk 0:01:46.3]} 21. Nxd4 {[%clk 0:02:03.3]} 21... Bxd4 {[%clk 0:01:38.8]} 22.
Qg5 {[%clk 0:01:54.5]} 22... f6 {[%clk 0:01:35.3]} 23. Qg4 {[%clk 0:01:52.4]}
23... f5 {[%clk 0:01:24.3]} 24. Qf4 {[%clk 0:01:37]} 24... Qc5 {[%clk 0:01:08]}
25. Rc2 {[%clk 0:01:20.8]} 25... Be4 {[%clk 0:01:02.4]} 26. Rcd2 {[%clk
0:01:20.3]} 26... e5 {[%clk 0:00:54.8]} 27. Qh4 {[%clk 0:01:16.4]} 27... Rd6
{[%clk 0:00:43.2]} 28. Qe7 {[%clk 0:01:11.6]} 28... Rg6 {[%clk 0:00:40.5]} 29.
Qe8+ {[%clk 0:01:09.2]} 29... Qf8 {[%clk 0:00:41.5]} 30. Qxf8+ {[%clk
0:01:01.1]} 30... Kxf8 {[%clk 0:00:42.2]} 31. Bf1 {[%clk 0:01:01.9]} 31... f4
{[%clk 0:00:38.3]} 32. Kh2 {[%clk 0:00:58.3]} 32... f3 {[%clk 0:00:37]} 33. g3
{[%clk 0:00:56.7]} 33... h5 {[%clk 0:00:30.6]} 34. Bd3 {[%clk 0:00:57.8]} 34...
Bxd3 {[%clk 0:00:29.7]} 35. Rxd3 {[%clk 0:00:59.7]} 35... Rf6 {[%clk 0:00:29.9]}
36. R1d2 {[%clk 0:00:56.9]} 36... g5 {[%clk 0:00:28.8]} 37. Kg1 {[%clk
0:00:54.4]} 37... g4 {[%clk 0:00:29.2]} 38. h4 {[%clk 0:00:53.5]} 38... Kf7
{[%clk 0:00:26.2]} 39. Kf1 {[%clk 0:00:54.4]} 39... Kg6 {[%clk 0:00:26]} 40. a3
{[%clk 0:00:35.9]} 40... Kf5 {[%clk 0:00:25.7]} 41. b4 {[%clk 0:00:34.6]} 41...
axb4 {[%clk 0:00:25.8]} 42. axb4 {[%clk 0:00:36]} 42... Ke4 {[%clk 0:00:26.6]}
43. Ra3 {[%clk 0:00:32.1]} 43... Rc6 {[%clk 0:00:24.9]} 44. Rc2 {[%clk
0:00:33.3]} 44... Rc8 {[%clk 0:00:18.1]} 45. Ke1 {[%clk 0:00:34.2]} 45... Kf5
{[%clk 0:00:17.6]} 46. Ra7 {[%clk 0:00:18.4]} 46... e4 {[%clk 0:00:17.8]} 47.
Rf7+ {[%clk 0:00:15.2]} 47... Bf6 {[%clk 0:00:15]} 48. Rb7 {[%clk 0:00:11.9]}
48... Bd4 {[%clk 0:00:12.6]} 49. c5 {[%clk 0:00:07.4]} 49... bxc5 {[%clk
0:00:12.3]} 50. Rb5 {[%clk 0:00:08.9]} 50... e3 {[%clk 0:00:11.8]} 51. fxe3
{[%clk 0:00:09.6]} 51... Bxe3 {[%clk 0:00:11.3]} 52. bxc5 {[%clk 0:00:11]} 52...
Ke4 {[%clk 0:00:07.4]} 53. c6 {[%clk 0:00:05.2]} 53... f2+ {[%clk 0:00:05.8]}
54. Ke2 {[%clk 0:00:05.1]} 54... Bd4 {[%clk 0:00:03.8]} 55. Rc4 {[%clk
0:00:03.9]} 55... Re8 {[%clk 0:00:03.1]} 56. Kf1 {[%clk 0:00:03.9]} 56... Kf3
{[%clk 0:00:03.6]} 57. Rb3+ {[%clk 0:00:04.2]} 57... Be3 {[%clk 0:00:04.4]} 58.
Rf4+ {[%clk 0:00:03.9]} 58... Kxg3 {[%clk 0:00:05.1]} 59. Rxf2 {[%clk
0:00:04.3]} 59... Kxh4 {[%clk 0:00:02.6]} 60. Re2 {[%clk 0:00:05.6]} 1-0

[Event "*** MasterClass Titled Tuesday Blitz"]
[Site "Chess.com"]
[Date "2017.10.03"]
[Round "6"]
[White "MisaPap"]
[Black "ChessWarrior7197"]
[Result "1/2-1/2"]
[WhiteElo "2456"]
[BlackElo "2642"]
[TimeControl "180+2"]
[EndTime "14:26:13 PDT"]
[Termination "Game drawn by stalemate"]

1. e4 {[%clk 0:03:01.7]} 1... c5 {[%clk 0:02:58.5]} 2. c3 {[%clk 0:03:02.1]}
2... d5 {[%clk 0:02:59]} 3. exd5 {[%clk 0:03:02.7]} 3... Qxd5 {[%clk 0:03:00.8]}
4. d4 {[%clk 0:03:04.2]} 4... Nc6 {[%clk 0:03:00.8]} 5. Nf3 {[%clk 0:03:05.3]}
5... Bf5 {[%clk 0:03:01.8]} 6. Be3 {[%clk 0:03:01.9]} 6... cxd4 {[%clk
0:03:02.2]} 7. Nxd4 {[%clk 0:03:00.7]} 7... Nxd4 {[%clk 0:02:54.2]} 8. Qxd4
{[%clk 0:02:57.7]} 8... Qxd4 {[%clk 0:02:54.3]} 9. Bxd4 {[%clk 0:02:58.9]} 9...
Nf6 {[%clk 0:02:53.6]} 10. Na3 {[%clk 0:02:57.8]} 10... a6 {[%clk 0:02:53.5]}
11. Nc4 {[%clk 0:02:58.5]} 11... e6 {[%clk 0:02:54]} 12. Be2 {[%clk 0:02:48.9]}
12... Be7 {[%clk 0:02:48.5]} 13. Bf3 {[%clk 0:02:45.2]} 13... Rc8 {[%clk
0:02:41.2]} 14. Nb6 {[%clk 0:02:41.4]} 14... Rc7 {[%clk 0:02:38.6]} 15. Be5
{[%clk 0:02:42]} 15... Rc5 {[%clk 0:02:35.1]} 16. Bd4 {[%clk 0:02:32.9]} 16...
Rc7 {[%clk 0:02:35.4]} 17. O-O {[%clk 0:02:25.6]} 17... O-O {[%clk 0:02:17.4]}
18. Be5 {[%clk 0:02:03.6]} 18... Rc5 {[%clk 0:02:16.1]} 19. Rfe1 {[%clk
0:02:04.1]} 19... Rb5 {[%clk 0:02:00.3]} 20. Na4 {[%clk 0:01:57.1]} 20... Nd7
{[%clk 0:01:48.8]} 21. Bg3 {[%clk 0:01:28.4]} 21... Nb6 {[%clk 0:01:46.8]} 22.
Nxb6 {[%clk 0:01:23.6]} 22... Rxb6 {[%clk 0:01:48.7]} 23. b3 {[%clk 0:01:24.9]}
23... Rc8 {[%clk 0:01:38.2]} 24. Rad1 {[%clk 0:01:01.4]} 24... Kf8 {[%clk
0:01:11.3]} 25. c4 {[%clk 0:00:53.2]} 25... Ke8 {[%clk 0:01:10.5]} 26. Be5
{[%clk 0:00:51.3]} 26... f6 {[%clk 0:01:05.8]} 27. Bf4 {[%clk 0:00:43.8]} 27...
e5 {[%clk 0:01:05.3]} 28. Be3 {[%clk 0:00:43.6]} 28... Bc5 {[%clk 0:01:06.5]}
29. Bd5 {[%clk 0:00:37.4]} 29... Bxe3 {[%clk 0:01:06.1]} 30. Rxe3 {[%clk
0:00:38.2]} 30... Bd7 {[%clk 0:01:06.8]} 31. f4 {[%clk 0:00:38.4]} 31... Kf8
{[%clk 0:00:54.7]} 32. fxe5 {[%clk 0:00:39.4]} 32... Re8 {[%clk 0:00:55.8]} 33.
Rde1 {[%clk 0:00:38.8]} 33... fxe5 {[%clk 0:00:56.6]} 34. Rxe5 {[%clk
0:00:39.8]} 34... Rxe5 {[%clk 0:00:57.3]} 35. Rxe5 {[%clk 0:00:41.7]} 35... a5
{[%clk 0:00:59]} 36. Kf2 {[%clk 0:00:37.6]} 36... a4 {[%clk 0:00:55.8]} 37. Re3
{[%clk 0:00:38.6]} 37... axb3 {[%clk 0:00:56.3]} 38. Rxb3 {[%clk 0:00:35.8]}
38... Ra6 {[%clk 0:00:56.5]} 39. Rxb7 {[%clk 0:00:36]} 39... Rxa2+ {[%clk
0:00:57.2]} 40. Kg3 {[%clk 0:00:37.4]} 40... Be8 {[%clk 0:00:57.8]} 41. c5
{[%clk 0:00:37]} 41... Rc2 {[%clk 0:00:58.7]} 42. Rc7 {[%clk 0:00:35.8]} 42...
h6 {[%clk 0:00:57.6]} 43. Kf4 {[%clk 0:00:35.7]} 43... Bb5 {[%clk 0:00:45.4]}
44. c6 {[%clk 0:00:25.4]} 44... Rc5 {[%clk 0:00:43]} 45. Be4 {[%clk 0:00:20.9]}
45... g5+ {[%clk 0:00:43.4]} 46. Ke3 {[%clk 0:00:22]} 46... Ke8 {[%clk
0:00:37.7]} 47. Kd4 {[%clk 0:00:20]} 47... Rc4+ {[%clk 0:00:38.3]} 48. Kd5
{[%clk 0:00:16.4]} 48... Kd8 {[%clk 0:00:35.4]} 49. Rd7+ {[%clk 0:00:14.2]}
49... Kc8 {[%clk 0:00:34.8]} 50. Ke5 {[%clk 0:00:11.1]} 50... Rxe4+ {[%clk
0:00:15.2]} 51. Kxe4 {[%clk 0:00:12]} 51... Bxc6+ {[%clk 0:00:17.1]} 52. Rd5
{[%clk 0:00:13.6]} 52... Bxd5+ {[%clk 0:00:18.2]} 53. Kxd5 {[%clk 0:00:14.6]}
53... Kd7 {[%clk 0:00:20.1]} 54. Ke5 {[%clk 0:00:15.7]} 54... Ke7 {[%clk
0:00:21.7]} 55. Kf5 {[%clk 0:00:16.9]} 55... Kf7 {[%clk 0:00:23]} 56. g4 {[%clk
0:00:18.1]} 56... Kg7 {[%clk 0:00:24.2]} 57. Ke6 {[%clk 0:00:19.3]} 57... Kg6
{[%clk 0:00:25.5]} 58. Ke7 {[%clk 0:00:17.4]} 58... Kg7 {[%clk 0:00:26.5]} 59.
h3 {[%clk 0:00:17]} 59... Kg6 {[%clk 0:00:26.4]} 60. Kf8 {[%clk 0:00:17.9]}
60... h5 {[%clk 0:00:27.9]} 61. Ke7 {[%clk 0:00:18.5]} 61... hxg4 {[%clk
0:00:27.5]} 62. hxg4 {[%clk 0:00:19.2]} 62... Kg7 {[%clk 0:00:28.7]} 63. Ke6
{[%clk 0:00:20.4]} 63... Kg6 {[%clk 0:00:23]} 64. Ke5 {[%clk 0:00:21.5]} 64...
Kg7 {[%clk 0:00:23.6]} 65. Kf5 {[%clk 0:00:22]} 65... Kf7 {[%clk 0:00:24.4]} 66.
Kxg5 {[%clk 0:00:23.1]} 66... Kg7 {[%clk 0:00:26]} 67. Kf5 {[%clk 0:00:24.5]}
67... Kf7 {[%clk 0:00:27]} 68. g5 {[%clk 0:00:26.2]} 68... Kg7 {[%clk
0:00:28.2]} 69. g6 {[%clk 0:00:27.6]} 69... Kg8 {[%clk 0:00:29.5]} 70. Kg5
{[%clk 0:00:29.1]} 70... Kg7 {[%clk 0:00:30.6]} 71. Kh5 {[%clk 0:00:29.6]} 71...
Kg8 {[%clk 0:00:31.9]} 72. Kh6 {[%clk 0:00:31]} 72... Kh8 {[%clk 0:00:33]} 73.
Kg5 {[%clk 0:00:24.4]} 73... Kg7 {[%clk 0:00:33.8]} 74. Kf5 {[%clk 0:00:25.7]}
74... Kg8 {[%clk 0:00:34.9]} 75. Kf6 {[%clk 0:00:27]} 75... Kf8 {[%clk 0:00:36]}
76. g7+ {[%clk 0:00:28.6]} 76... Kg8 {[%clk 0:00:37.2]} 77. Kg6 {[%clk
0:00:30.3]} 1/2-1/2

[Event "*** MasterClass Titled Tuesday Blitz"]
[Site "Chess.com"]
[Date "2017.10.03"]
[Round "6"]
[White "GrigorGrigorov"]
[Black "Gordima"]
[Result "1-0"]
[WhiteElo "2729"]
[BlackElo "2584"]
[TimeControl "180+2"]
[EndTime "14:26:23 PDT"]
[Termination "GrigorGrigorov won by resignation"]

1. d4 {[%clk 0:03:01.9]} 1... Nf6 {[%clk 0:03:00.5]} 2. c4 {[%clk 0:03:02]} 2...
g6 {[%clk 0:03:01.8]} 3. Nc3 {[%clk 0:02:59.3]} 3... Bg7 {[%clk 0:03:02.8]} 4.
e4 {[%clk 0:03:00.3]} 4... d6 {[%clk 0:03:03.4]} 5. Be2 {[%clk 0:03:01.6]} 5...
O-O {[%clk 0:03:04.1]} 6. Be3 {[%clk 0:03:02.2]} 6... Na6 {[%clk 0:03:04.3]} 7.
Nf3 {[%clk 0:03:01.6]} 7... c6 {[%clk 0:03:01.3]} 8. O-O {[%clk 0:03:00.4]} 8...
e5 {[%clk 0:03:01.9]} 9. Re1 {[%clk 0:02:48.1]} 9... Re8 {[%clk 0:03:02.5]} 10.
dxe5 {[%clk 0:02:29.4]} 10... Ng4 {[%clk 0:03:02]} 11. Bg5 {[%clk 0:02:10.9]}
11... Qb6 {[%clk 0:03:02.7]} 12. Bh4 {[%clk 0:02:10.2]} 12... dxe5 {[%clk
0:02:56.8]} 13. h3 {[%clk 0:02:08.1]} 13... Nf6 {[%clk 0:02:56.3]} 14. a3 {[%clk
0:01:55.2]} 14... Nc5 {[%clk 0:02:21.3]} 15. Bxf6 {[%clk 0:01:23.3]} 15... Bxf6
{[%clk 0:02:22.6]} 16. b4 {[%clk 0:01:24.8]} 16... Ne6 {[%clk 0:02:22.2]} 17. c5
{[%clk 0:01:26.1]} 17... Qc7 {[%clk 0:02:21.9]} 18. Bc4 {[%clk 0:01:27.1]} 18...
Nd4 {[%clk 0:02:18.7]} 19. Nxd4 {[%clk 0:01:19.6]} 19... exd4 {[%clk 0:02:19.7]}
20. Nb1 {[%clk 0:01:18.4]} 20... b6 {[%clk 0:01:53]} 21. Nd2 {[%clk 0:01:09.5]}
21... Bg7 {[%clk 0:01:44.9]} 22. Nf3 {[%clk 0:01:06.6]} 22... bxc5 {[%clk
0:01:18.9]} 23. bxc5 {[%clk 0:01:06.1]} 23... Qa5 {[%clk 0:01:19.8]} 24. Qb3
{[%clk 0:00:47.5]} 24... Re7 {[%clk 0:01:06.6]} 25. Ng5 {[%clk 0:00:47.1]} 25...
Qxc5 {[%clk 0:00:59.5]} 26. Nxf7 {[%clk 0:00:37.4]} 26... Kf8 {[%clk 0:00:55.6]}
27. e5 {[%clk 0:00:37.7]} 27... Bxe5 {[%clk 0:00:49.7]} 28. Nxe5 {[%clk
0:00:29]} 28... Rxe5 {[%clk 0:00:50.4]} 29. Qg3 {[%clk 0:00:18.2]} 29... Rxe1+
{[%clk 0:00:31.9]} 30. Rxe1 {[%clk 0:00:20.1]} 30... Bf5 {[%clk 0:00:28.5]} 31.
Bb3 {[%clk 0:00:13.4]} 31... Re8 {[%clk 0:00:26.1]} 32. Rd1 {[%clk 0:00:10.4]}
32... d3 {[%clk 0:00:21.9]} 33. Qc7 {[%clk 0:00:08.7]} 33... Qe7 {[%clk
0:00:07.6]} 34. Qxc6 {[%clk 0:00:09.2]} 34... d2 {[%clk 0:00:07.5]} 35. Qc3
{[%clk 0:00:08.5]} 35... Qe1+ {[%clk 0:00:07.6]} 36. Kh2 {[%clk 0:00:08.7]}
36... Qe5+ {[%clk 0:00:07.1]} 37. Qxe5 {[%clk 0:00:10.2]} 37... Rxe5 {[%clk
0:00:09]} 38. Rxd2 {[%clk 0:00:11.8]} 38... Ra5 {[%clk 0:00:10.6]} 39. a4 {[%clk
0:00:12.2]} 39... Ke7 {[%clk 0:00:11.3]} 40. Rd4 {[%clk 0:00:13.1]} 40... Bd7
{[%clk 0:00:12.1]} 41. g4 {[%clk 0:00:13.9]} 41... h5 {[%clk 0:00:10.8]} 42. Kg3
{[%clk 0:00:14.8]} 42... hxg4 {[%clk 0:00:11.9]} 43. hxg4 {[%clk 0:00:16.7]}
43... g5 {[%clk 0:00:13.3]} 44. f4 {[%clk 0:00:17.2]} 44... gxf4+ {[%clk
0:00:12.9]} 45. Kxf4 {[%clk 0:00:19.1]} 45... Rc5 {[%clk 0:00:11.1]} 46. Rb4
{[%clk 0:00:15.9]} 46... a5 {[%clk 0:00:08.3]} 47. Re4+ {[%clk 0:00:15.7]} 47...
Kf6 {[%clk 0:00:08.4]} 48. Rd4 {[%clk 0:00:16.5]} 48... Ke7 {[%clk 0:00:09.1]}
49. Bd1 {[%clk 0:00:15.1]} 49... Rc8 {[%clk 0:00:06.8]} 50. g5 {[%clk
0:00:13.8]} 50... Rf8+ {[%clk 0:00:07.3]} 51. Kg3 {[%clk 0:00:12]} 51... Rb8
{[%clk 0:00:04.7]} 52. Bg4 {[%clk 0:00:11]} 52... Bxg4 {[%clk 0:00:04.6]} 53.
Kxg4 {[%clk 0:00:11.9]} 53... Rb4 {[%clk 0:00:04.4]} 54. Rf4 {[%clk 0:00:11.1]}
54... Rb1 {[%clk 0:00:03.9]} 55. g6 {[%clk 0:00:11]} 55... Rg1+ {[%clk
0:00:05.2]} 56. Kh5 {[%clk 0:00:12.3]} 56... Rh1+ {[%clk 0:00:04.3]} 57. Kg5
{[%clk 0:00:13.5]} 57... Rg1+ {[%clk 0:00:05.8]} 58. Kh6 {[%clk 0:00:14.6]}
58... Rh1+ {[%clk 0:00:07.1]} 59. Kg7 {[%clk 0:00:15.6]} 59... Rh2 {[%clk
0:00:08.6]} 60. Kg8 {[%clk 0:00:15.8]} 60... Ke8 {[%clk 0:00:10.1]} 61. Re4+
{[%clk 0:00:16.1]} 61... Kd7 {[%clk 0:00:11.1]} 62. g7 {[%clk 0:00:17.5]} 62...
Rh3 {[%clk 0:00:11.5]} 63. Kf7 {[%clk 0:00:18.1]} 63... Rf3+ {[%clk 0:00:12.7]}
64. Kg6 {[%clk 0:00:19]} 64... Rg3+ {[%clk 0:00:14.2]} 65. Kf6 {[%clk
0:00:20.2]} 65... Rg1 {[%clk 0:00:15.3]} 66. Re5 {[%clk 0:00:20.6]} 66... Rf1+
{[%clk 0:00:14.5]} 67. Rf5 {[%clk 0:00:21.6]} 67... Rf4 {[%clk 0:00:15.9]} 1-0